[Event "FIDE Grand Swiss 2023"]
[Site "Villa Marina, Douglas, Isle of Man, Isle Of Man"]
[Date "2023.10.26"]
[Round "2.7"]
[White "Anton Guijarro, David"]
[Black "Erigaisi, Arjun"]
[Result "0-1"]
[TimeControl "40/90 + 30 + 30s/move"]
[WhiteFideId "2285525"]
[BlackFideId "35009192"]
[WhiteElo "2653"]
[BlackElo "2712"]

1. c4 {[%clk 01:40:54]} {[%emt 00:00:05]} e6 {[%clk 01:40:54]} {[%emt
00:00:06]} 2. g3 {[%clk 01:41:09]} {[%emt 00:00:16]} d5 {[%clk 01:41:16]}
{[%emt 00:00:07]} 3. Bg2 {[%clk 01:41:32]} {[%emt 00:00:07]} Nf6 {[%clk
01:41:40]} {[%emt 00:00:06]} 4. Nf3 {[%clk 01:41:31]} {[%emt 00:00:31]} d4
{[%clk 01:41:50]} {[%emt 00:00:20]} 5. d3 {[%clk 01:37:59]} {[%emt 00:04:02]}
Nc6 {[%clk 01:41:25]} {[%emt 00:00:55]} 6. O-O {[%clk 01:37:39]} {[%emt
00:00:50]} Bc5 {[%clk 01:41:35]} {[%emt 00:00:20]} 7. Na3 {[%clk 01:25:06]}
{[%emt 00:13:03]} O-O {[%clk 01:29:26]} {[%emt 00:12:39]} 8. Nc2 {[%clk
01:25:19]} {[%emt 00:00:17]} a5 {[%clk 01:29:14]} {[%emt 00:00:43]} 9. b3
{[%clk 01:17:00]} {[%emt 00:08:49]} e5 {[%clk 01:23:15]} {[%emt 00:06:28]} 10.
Bg5 {[%clk 01:16:38]} {[%emt 00:00:52]} h6 {[%clk 01:16:21]} {[%emt 00:07:25]}
11. Bxf6 {[%clk 01:16:58]} {[%emt 00:00:10]} Qxf6 {[%clk 01:16:46]} {[%emt
00:00:05]} 12. a3 {[%clk 01:17:07]} {[%emt 00:00:21]} Qe7 {[%clk 01:05:27]}
{[%emt 00:11:48]} 13. Qc1 {[%clk 01:08:29]} {[%emt 00:09:08]} Bg4 {[%clk
01:00:04]} {[%emt 00:05:53]} 14. Re1 {[%clk 01:02:27]} {[%emt 00:06:31]} Ra6
{[%clk 00:58:10]} {[%emt 00:02:25]} 15. Rb1 {[%clk 00:53:23]} {[%emt 00:09:34]}
Rb6 {[%clk 00:54:50]} {[%emt 00:03:50]} 16. Nd2 {[%clk 00:48:14]} {[%emt
00:05:39]} f5 {[%clk 00:54:37]} {[%emt 00:00:42]} 17. Bd5+ {[%clk 00:47:28]}
{[%emt 00:01:16]} Kh8 {[%clk 00:54:05]} {[%emt 00:01:03]} 18. Nf3 {[%clk
00:46:51]} {[%emt 00:01:07]} Qf6 {[%clk 00:41:51]} {[%emt 00:12:44]} 19. Qd2
{[%clk 00:33:51]} {[%emt 00:13:30]} Ne7 {[%clk 00:32:30]} {[%emt 00:09:51]} 20.
Qxa5 {[%clk 00:32:10]} {[%emt 00:02:11]} Bd6 {[%clk 00:32:54]} {[%emt
00:00:06]} 21. Nb4 {[%clk 00:27:57]} {[%emt 00:04:43]} Rxb4 {[%clk 00:24:31]}
{[%emt 00:08:53]} 22. axb4 {[%clk 00:26:29]} {[%emt 00:01:58]} c6 {[%clk
00:24:56]} {[%emt 00:00:05]} 23. Qb6 {[%clk 00:22:22]} {[%emt 00:04:38]} cxd5
{[%clk 00:18:09]} {[%emt 00:07:17]} 24. c5 {[%clk 00:22:29]} {[%emt 00:00:23]}
Bb8 {[%clk 00:18:34]} {[%emt 00:00:04]} 25. Qxf6 {[%clk 00:17:21]} {[%emt
00:05:38]} gxf6 {[%clk 00:18:59]} {[%emt 00:00:04]} 26. Ra1 {[%clk 00:09:08]}
{[%emt 00:08:44]} f4 {[%clk 00:12:48]} {[%emt 00:06:41]} 27. Ra8 {[%clk
00:06:31]} {[%emt 00:03:07]} fxg3 {[%clk 00:10:12]} {[%emt 00:03:06]} 28. fxg3
{[%clk 00:04:21]} {[%emt 00:02:41]} Bd7 {[%clk 00:09:37]} {[%emt 00:01:05]} 29.
Rea1 {[%clk 00:04:01]} {[%emt 00:00:51]} Kg7 {[%clk 00:10:01]} {[%emt
00:00:05]} 30. Kf2 {[%clk 00:02:05]} {[%emt 00:02:26]} Nf5 {[%clk 00:08:32]}
{[%emt 00:01:59]} 31. R1a5 {[%clk 00:01:37]} {[%emt 00:00:59]} e4 {[%clk
00:07:42]} {[%emt 00:01:20]} 32. Nh4 {[%clk 00:01:19]} {[%emt 00:00:48]} Nxh4
{[%clk 00:06:36]} {[%emt 00:01:35]} 33. gxh4 {[%clk 00:01:44]} {[%emt
00:00:05]} Kf7 {[%clk 00:03:57]} {[%emt 00:03:09]} 34. b5 {[%clk 00:00:39]}
{[%emt 00:01:36]} Rg8 {[%clk 00:03:21]} {[%emt 00:01:06]} 35. dxe4 {[%clk
00:00:38]} {[%emt 00:00:32]} dxe4 {[%clk 00:03:46]} {[%emt 00:00:04]} 36. R5a7
{[%clk 00:00:36]} {[%emt 00:00:32]} Bxa7 {[%clk 00:02:47]} {[%emt 00:01:29]} 37.
Rxa7 {[%clk 00:01:03]} {[%emt 00:00:03]} Bh3 {[%clk 00:03:00]} {[%emt
00:00:17]} 38. c6 {[%clk 00:00:37]} {[%emt 00:00:57]} Ke6 {[%clk 00:03:14]}
{[%emt 00:00:16]} 39. c7 {[%clk 00:00:32]} {[%emt 00:00:35]} e3+ {[%clk
00:03:13]} {[%emt 00:00:30]} 40. Kf3 {[%clk 00:00:56]} {[%emt 00:00:06]} Ke5
{[%clk 00:03:37]} {[%emt 00:00:06]} 0-1

[Event "FIDE Grand Swiss 2023"]
[Site "Villa Marina, Douglas, Isle of Man, Isle Of Man"]
[Date "2023.10.26"]
[Round "2.8"]
[White "Melkumyan, Hrant"]
[Black "Maghsoodloo, Parham"]
[Result "1/2-1/2"]
[TimeControl "40/90 + 30 + 30s/move"]
[WhiteFideId "13302485"]
[BlackFideId "12539929"]
[WhiteElo "2650"]
[BlackElo "2707"]

1. Nf3 {[%clk 01:40:54]} {[%emt 00:00:04]} d5 {[%clk 01:40:04]} {[%emt
00:00:57]} 2. e3 {[%clk 01:41:13]} {[%emt 00:00:11]} Nf6 {[%clk 01:40:27]}
{[%emt 00:00:07]} 3. c4 {[%clk 01:41:27]} {[%emt 00:00:16]} e6 {[%clk
01:40:50]} {[%emt 00:00:08]} 4. Nc3 {[%clk 01:41:44]} {[%emt 00:00:12]} Bd6
{[%clk 01:38:05]} {[%emt 00:03:15]} 5. b3 {[%clk 01:41:50]} {[%emt 00:00:23]}
O-O {[%clk 01:37:25]} {[%emt 00:01:11]} 6. Bb2 {[%clk 01:42:11]} {[%emt
00:00:08]} Nc6 {[%clk 01:33:50]} {[%emt 00:04:05]} 7. Be2 {[%clk 01:33:33]}
{[%emt 00:09:08]} Re8 {[%clk 01:26:59]} {[%emt 00:07:22]} 8. Nb5 {[%clk
01:21:57]} {[%emt 00:12:06]} e5 {[%clk 01:24:52]} {[%emt 00:02:37]} 9. cxd5
{[%clk 01:15:21]} {[%emt 00:07:06]} Nxd5 {[%clk 01:25:15]} {[%emt 00:00:07]} 10.
Nxd6 {[%clk 01:14:09]} {[%emt 00:01:41]} Qxd6 {[%clk 01:22:04]} {[%emt
00:03:43]} 11. d4 {[%clk 01:07:26]} {[%emt 00:07:12]} e4 {[%clk 01:14:33]}
{[%emt 00:08:02]} 12. Ne5 {[%clk 01:05:51]} {[%emt 00:02:04]} Qb4+ {[%clk
01:10:30]} {[%emt 00:04:33]} 13. Qd2 {[%clk 01:05:18]} {[%emt 00:01:03]} Nxe5
{[%clk 01:10:33]} {[%emt 00:00:28]} 14. dxe5 {[%clk 01:05:38]} {[%emt
00:00:09]} Qxd2+ {[%clk 01:10:59]} {[%emt 00:00:04]} 15. Kxd2 {[%clk 01:05:58]}
{[%emt 00:00:10]} Rd8 {[%clk 01:09:33]} {[%emt 00:01:57]} 16. Rhc1 {[%clk
00:58:09]} {[%emt 00:08:18]} b6 {[%clk 00:41:13]} {[%emt 00:28:51]} 17. Ke1
{[%clk 00:57:31]} {[%emt 00:01:07]} c5 {[%clk 00:41:36]} {[%emt 00:00:08]} 18.
a3 {[%clk 00:55:06]} {[%emt 00:02:55]} a5 {[%clk 00:40:43]} {[%emt 00:01:23]}
19. Bd1 {[%clk 00:49:21]} {[%emt 00:06:14]} Bf5 {[%clk 00:35:59]} {[%emt
00:05:14]} 20. Bc2 {[%clk 00:48:19]} {[%emt 00:01:32]} h5 {[%clk 00:30:02]}
{[%emt 00:06:27]} 21. Rd1 {[%clk 00:47:44]} {[%emt 00:01:06]} b5 {[%clk
00:30:22]} {[%emt 00:00:11]} 22. Rac1 {[%clk 00:39:33]} {[%emt 00:08:41]} h4
{[%clk 00:23:06]} {[%emt 00:07:45]} 23. Bb1 {[%clk 00:36:46]} {[%emt 00:03:17]}
Rac8 {[%clk 00:23:31]} {[%emt 00:00:05]} 24. Rd2 {[%clk 00:36:09]} {[%emt
00:01:07]} Rd7 {[%clk 00:23:31]} {[%emt 00:00:31]} 25. Rdc2 {[%clk 00:32:39]}
{[%emt 00:04:00]} Rdc7 {[%clk 00:23:29]} {[%emt 00:00:32]} 26. Rd2 {[%clk
00:33:02]} {[%emt 00:00:07]} Rd7 {[%clk 00:23:52]} {[%emt 00:00:07]} 27. Rdc2
{[%clk 00:20:30]} {[%emt 00:13:02]} Rdc7 {[%clk 00:24:20]} {[%emt 00:00:02]} 28.
Rd2 {[%clk 00:20:41]} {[%emt 00:00:19]} Rd7 {[%clk 00:24:46]} {[%emt 00:00:04]}
29. Rdc2 {[%clk 00:21:03]} {[%emt 00:00:09]} Rdc7 {[%clk 00:25:12]} {[%emt
00:00:03]} 30. Rd2 {[%clk 00:21:25]} {[%emt 00:00:08]} Rd7 {[%clk 00:25:40]}
{[%emt 00:00:02]} 1/2-1/2

[Event "FIDE Grand Swiss 2023"]
[Site "Villa Marina, Douglas, Isle of Man, Isle Of Man"]
[Date "2023.10.26"]
[Round "2.9"]
[White "Sevian, Samuel"]
[Black "Aravindh, Chithambaram Vr."]
[Result "1/2-1/2"]
[TimeControl "40/90 + 30 + 30s/move"]
[WhiteFideId "2040506"]
[BlackFideId "5072786"]
[WhiteElo "2698"]
[BlackElo "2649"]

1. e4 {[%clk 01:40:56]} {[%emt 00:00:03]} c5 {[%clk 01:40:47]} {[%emt
00:00:13]} 2. Nf3 {[%clk 01:41:10]} {[%emt 00:00:16]} e6 {[%clk 01:41:06]}
{[%emt 00:00:11]} 3. d4 {[%clk 01:40:57]} {[%emt 00:00:44]} cxd4 {[%clk
01:41:26]} {[%emt 00:00:10]} 4. Nxd4 {[%clk 01:41:21]} {[%emt 00:00:06]} Nf6
{[%clk 01:41:48]} {[%emt 00:00:07]} 5. Nc3 {[%clk 01:37:44]} {[%emt 00:04:07]}
Nc6 {[%clk 01:42:07]} {[%emt 00:00:11]} 6. a3 {[%clk 01:37:18]} {[%emt
00:00:57]} Be7 {[%clk 01:38:57]} {[%emt 00:03:39]} 7. Nxc6 {[%clk 01:35:27]}
{[%emt 00:02:22]} bxc6 {[%clk 01:38:21]} {[%emt 00:01:06]} 8. e5 {[%clk
01:35:50]} {[%emt 00:00:08]} Nd5 {[%clk 01:38:43]} {[%emt 00:00:08]} 9. Qg4
{[%clk 01:36:10]} {[%emt 00:00:10]} Kf8 {[%clk 01:37:13]} {[%emt 00:01:59]} 10.
Bd2 {[%clk 01:27:39]} {[%emt 00:09:02]} Qc7 {[%clk 01:21:50]} {[%emt 00:15:52]}
11. Qg3 {[%clk 01:24:13]} {[%emt 00:03:57]} h5 {[%clk 01:07:11]} {[%emt
00:15:09]} 12. h4 {[%clk 01:23:35]} {[%emt 00:01:08]} Rb8 {[%clk 00:55:29]}
{[%emt 00:12:11]} 13. Na4 {[%clk 01:21:13]} {[%emt 00:02:54]} c5 {[%clk
00:50:23]} {[%emt 00:05:36]} 14. c4 {[%clk 01:16:07]} {[%emt 00:05:36]} Nb6
{[%clk 00:45:38]} {[%emt 00:05:14]} 15. Nxb6 {[%clk 00:54:29]} {[%emt
00:22:08]} Qxb6 {[%clk 00:43:29]} {[%emt 00:02:38]} 16. Bc3 {[%clk 00:54:43]}
{[%emt 00:00:16]} Bb7 {[%clk 00:40:17]} {[%emt 00:03:41]} 17. Rd1 {[%clk
00:51:48]} {[%emt 00:03:26]} Bc6 {[%clk 00:37:02]} {[%emt 00:03:45]} 18. Bd3
{[%clk 00:49:07]} {[%emt 00:03:12]} Qd8 {[%clk 00:31:26]} {[%emt 00:06:05]} 19.
Bc2 {[%clk 00:38:57]} {[%emt 00:10:40]} Rg8 {[%clk 00:25:27]} {[%emt 00:06:28]}
20. Bh7 {[%clk 00:28:30]} {[%emt 00:10:58]} Rh8 {[%clk 00:25:05]} {[%emt
00:00:51]} 21. Bc2 {[%clk 00:28:58]} {[%emt 00:00:03]} Rg8 {[%clk 00:25:27]}
{[%emt 00:00:07]} 22. f4 {[%clk 00:26:01]} {[%emt 00:03:28]} f5 {[%clk
00:22:07]} {[%emt 00:03:50]} 23. Rd2 {[%clk 00:26:25]} {[%emt 00:00:07]} Kf7
{[%clk 00:21:10]} {[%emt 00:01:26]} 24. Bd1 {[%clk 00:26:05]} {[%emt 00:00:50]}
g6 {[%clk 00:20:21]} {[%emt 00:01:19]} 25. Kf2 {[%clk 00:25:04]} {[%emt
00:01:30]} Qc8 {[%clk 00:14:03]} {[%emt 00:06:48]} 26. Bf3 {[%clk 00:21:45]}
{[%emt 00:03:50]} Ba4 {[%clk 00:13:49]} {[%emt 00:00:43]} 27. Bd1 {[%clk
00:20:51]} {[%emt 00:01:24]} Bc6 {[%clk 00:14:08]} {[%emt 00:00:12]} 28. Bf3
{[%clk 00:19:15]} {[%emt 00:02:06]} Ba4 {[%clk 00:14:33]} {[%emt 00:00:05]} 29.
Bd1 {[%clk 00:19:34]} {[%emt 00:00:11]} 1/2-1/2

[Event "FIDE Grand Swiss 2023"]
[Site "Villa Marina, Douglas, Isle of Man, Isle Of Man"]
[Date "2023.10.26"]
[Round "2.10"]
[White "Najer, Evgeniy"]
[Black "Martirosyan, Haik M."]
[Result "1/2-1/2"]
[TimeControl "40/90 + 30 + 30s/move"]
[WhiteFideId "4118987"]
[BlackFideId "13306553"]
[WhiteElo "2648"]
[BlackElo "2696"]

1. e4 {[%clk 01:40:57]} {[%emt 00:00:02]} e5 {[%clk 01:40:53]} {[%emt
00:00:07]} 2. Nf3 {[%clk 01:41:23]} {[%emt 00:00:05]} Nc6 {[%clk 01:41:16]}
{[%emt 00:00:06]} 3. Bc4 {[%clk 01:41:48]} {[%emt 00:00:05]} Bc5 {[%clk
01:41:38]} {[%emt 00:00:07]} 4. c3 {[%clk 01:42:09]} {[%emt 00:00:10]} Nf6
{[%clk 01:42:01]} {[%emt 00:00:07]} 5. d3 {[%clk 01:42:34]} {[%emt 00:00:04]}
O-O {[%clk 01:42:23]} {[%emt 00:00:09]} 6. O-O {[%clk 01:42:42]} {[%emt
00:00:23]} d5 {[%clk 01:42:28]} {[%emt 00:00:25]} 7. exd5 {[%clk 01:42:45]}
{[%emt 00:00:27]} Nxd5 {[%clk 01:42:53]} {[%emt 00:00:05]} 8. Re1 {[%clk
01:39:33]} {[%emt 00:03:42]} Bg4 {[%clk 01:42:50]} {[%emt 00:00:33]} 9. Nbd2
{[%clk 01:39:19]} {[%emt 00:00:44]} Nb6 {[%clk 01:41:28]} {[%emt 00:01:51]} 10.
h3 {[%clk 01:39:12]} {[%emt 00:00:37]} Bh5 {[%clk 01:41:22]} {[%emt 00:00:36]}
11. Bb3 {[%clk 01:38:08]} {[%emt 00:01:34]} Qxd3 {[%clk 01:41:34]} {[%emt
00:00:18]} 12. Nxe5 {[%clk 01:38:16]} {[%emt 00:00:22]} Qf5 {[%clk 01:41:30]}
{[%emt 00:00:34]} 13. Nef3 {[%clk 01:38:29]} {[%emt 00:00:18]} Rad8 {[%clk
01:41:25]} {[%emt 00:00:36]} 14. Qe2 {[%clk 01:33:33]} {[%emt 00:05:27]} Nd5
{[%clk 01:41:05]} {[%emt 00:00:49]} 15. Ne4 {[%clk 01:32:53]} {[%emt 00:01:10]}
Bxf3 {[%clk 01:41:00]} {[%emt 00:00:36]} 16. Qxf3 {[%clk 01:33:16]} {[%emt
00:00:06]} Qxf3 {[%clk 01:41:23]} {[%emt 00:00:07]} 17. gxf3 {[%clk 01:33:43]}
{[%emt 00:00:03]} Bb6 {[%clk 01:41:42]} {[%emt 00:00:10]} 18. Kf1 {[%clk
01:17:51]} {[%emt 00:16:23]} h6 {[%clk 01:38:33]} {[%emt 00:03:39]} 19. a4
{[%clk 01:15:02]} {[%emt 00:03:20]} a5 {[%clk 01:37:06]} {[%emt 00:01:56]} 20.
Bxh6 {[%clk 00:56:24]} {[%emt 00:19:08]} Nxc3 {[%clk 01:29:55]} {[%emt
00:07:42]} 21. Nf6+ {[%clk 00:51:12]} {[%emt 00:05:43]} Kh8 {[%clk 01:29:56]}
{[%emt 00:00:27]} 22. bxc3 {[%clk 00:47:27]} {[%emt 00:04:16]} gxh6 {[%clk
01:29:58]} {[%emt 00:00:28]} 23. Rad1 {[%clk 00:37:55]} {[%emt 00:10:03]} Rxd1
{[%clk 01:15:54]} {[%emt 00:14:34]} 24. Rxd1 {[%clk 00:38:15]} {[%emt
00:00:09]} Rd8 {[%clk 01:15:21]} {[%emt 00:01:03]} 25. Rd7 {[%clk 00:32:40]}
{[%emt 00:06:04]} Rxd7 {[%clk 01:10:34]} {[%emt 00:05:18]} 26. Nxd7 {[%clk
00:32:21]} {[%emt 00:00:50]} Ba7 {[%clk 00:45:56]} {[%emt 00:25:08]} 27. Bxf7
{[%clk 00:29:13]} {[%emt 00:03:38]} Nb8 {[%clk 00:45:18]} {[%emt 00:01:07]} 28.
Ne5 {[%clk 00:20:55]} {[%emt 00:08:48]} Na6 {[%clk 00:45:37]} {[%emt 00:00:11]}
29. Bb3 {[%clk 00:20:30]} {[%emt 00:00:55]} Nc5 {[%clk 00:45:08]} {[%emt
00:00:58]} 30. Bc2 {[%clk 00:20:58]} {[%emt 00:00:02]} c6 {[%clk 00:45:14]}
{[%emt 00:00:24]} 31. f4 {[%clk 00:11:20]} {[%emt 00:10:09]} Bb8 {[%clk
00:44:52]} {[%emt 00:00:51]} 32. Ke2 {[%clk 00:11:28]} {[%emt 00:00:22]} Kg7
{[%clk 00:44:36]} {[%emt 00:00:45]} 33. Ke3 {[%clk 00:10:21]} {[%emt 00:01:39]}
Bc7 {[%clk 00:44:08]} {[%emt 00:00:58]} 1/2-1/2